bitfinex-derivatives/quotes_ETHF0:USTF0_20250804
["timestamp","ask_amount","ask_price","bid_price","bid_amount"]
[1754271702177,0.9818,3544.5,3544.4,1.5553]
[1754271702383,3.7305,3544.5,3544.4,2.9561]
[1754271702678,2.9234,3544.5,3544.4,3.7591]
[1754271703685,20.94724,3545.2,3544.4,3.7591]
[1754271703686,5.3527,3545.5,3545.4,2.9561]
[1754271703878,4.5082422,3545.5,3545.4,3.7591]
[1754271704078,3.2078,3545.5,3545.4,3.7591]
[1754271704385,0.8402,3545.8,3545.4,4.32313]
[1754271704576,2.3673,3545.7,3545.6,2.61041]
[1754271704779,2.3673,3545.7,3545.6,2.884]
[1754271704980,2.8879,3545.7,3545.6,2.884]
[1754271705287,3.6792,3545.7,3545.6,2.884]
[1754271705488,1.7735,3545.7,3545.6,4.2487]
[1754271705989,3.6792,3545.7,3545.6,2.884]
[1754271706184,3.6792,3545.7,3545.6,1.7443]
[1754271706484,4.41585099,3545.7,3545.6,1.7443]
[1754271706680,3.6792,3545.7,3545.4,0.56404]
[1754271706981,22.7448,3545.9,3545.1,0.5174]
[1754271706982,1.92488,3545.2,3545.1,0.5174]
[1754271707188,3.6792,3544.9,3544.8,4.0454]
[1754271707381,0.8402,3545.2,3545.0,1.4574]
[1754271707587,2.3673,3545.2,3545.1,2.884]
[1754271707788,2.3673,3545.2,3545.1,3.6847]
[1754271707984,3.2078,3545.5,3545.2,0.56408]
[1754271708185,0.56406,3545.3,3545.2,0.6198]
[1754271708385,4.24326,3545.3,3545.2,1.7443]
[1754271708589,2.01802,3545.0,3544.9,2.2642]
[1754271708793,4.24332,3545.0,3544.9,2.884]
[1754271709479,3.6792,3545.0,3544.9,1.7443]
[1754271709679,3.6792,3545.0,3544.9,1.355]
[1754271710390,3.6792,3545.0,3544.9,1.7443]
[1754271710785,3.6792,3545.0,3544.9,0.5174]
[1754271710987,3.6792,3545.0,3544.9,2.884]
[1754271711390,1.3894,3545.5,3545.4,2.884]
[1754271711587,4.4179179,3545.5,3545.4,2.2642]
[1754271711788,0.56408,3545.2,3544.9,0.56412]
[1754271711992,2.01798,3545.2,3545.1,2.2642]
[1754271712194,2.7566979,3545.2,3545.1,2.2642]
[1754271712389,4.24328,3545.2,3545.1,0.5174]
[1754271712690,4.24331,3545.0,3544.9,1.355]
[1754271713283,0.8402,3544.9,3544.7,1.8749]
[1754271713489,3.6792,3544.8,3544.7,2.884]
[1754271713800,2.8879,3544.8,3544.7,2.884]
[1754271714392,3.6792,3544.8,3544.7,2.884]
[1754271716992,2.8879,3544.8,3544.7,2.884]
[1754271717294,2.8879,3544.8,3544.7,3.6847]
[1754271717789,0.5492,3545.0,3544.9,1.60141]
[1754271717997,1.3894,3545.0,3544.9,1.60141]
[1754271718187,1.3894,3545.0,3544.9,1.99071]
[1754271718388,1.3894,3545.0,3544.9,3.44811]
[1754271718590,1.3894,3545.0,3544.9,4.24881]
[1754271718794,1.7735,3545.0,3544.9,4.24881]
[1754271719897,2.8879,3545.0,3544.9,4.24881]
[1754271720593,19.537,3545.1,3544.9,1.99071]
[1754271720890,3.8016,3545.6,3544.8,3.2078]
[1754271720891,1.3894,3545.4,3545.3,1.0373]
[1754271721095,0.22082441,3546.0,3545.8,1.4266]
[1754271721096,2.2941,3545.9,3545.8,1.4266]
[1754271721396,2.2941,3545.9,3545.2,3.77186]
[1754271721397,1.4539,3545.6,3545.2,3.77186]
[1754271721693,1.4539,3545.4,3545.3,1.355]
[1754271721893,1.4539,3545.4,3545.3,2.2642]
[1754271722094,3.6792,3545.4,3545.3,2.884]
[1754271722894,3.6792,3545.4,3545.3,1.7443]
[1754271723096,3.6792,3545.4,3545.3,1.355]
[1754271723297,3.2078,3545.6,3545.1,0.56409]
[1754271723298,1.4539,3545.2,3545.1,0.9067]
[1754271723501,3.6792,3545.2,3545.1,1.7443]
[1754271723703,3.6792,3544.8,3544.7,3.44816]
[1754271725401,2.8879,3544.8,3544.7,3.44816]
[1754271725702,3.6792,3544.8,3544.7,3.44816]
[1754271726001,3.6792,3544.8,3544.7,2.884]
[1754271726501,4.24336,3544.7,3544.6,1.7443]
[1754271726701,4.22089,3544.5,3544.4,2.884]
[1754271727000,3.6567,3544.5,3544.4,2.884]
[1754271727201,2.8879,3544.5,3544.4,3.6847]
[1754271727402,3.6567,3544.5,3544.4,3.6847]
[1754271727703,2.8879,3544.5,3544.4,3.6847]
[1754271728400,2.3673,3544.5,3544.4,3.6847]
[1754271728602,1.7735,3544.5,3544.4,3.6847]
[1754271728994,2.8879,3544.5,3544.4,3.6847]
[1754271729605,2.3673,3544.5,3544.4,3.6847]
[1754271731403,3.6567,3544.5,3544.4,2.884]
[1754271733000,1.3894,3544.5,3544.4,3.6847]
[1754271736505,1.8087,3544.5,3544.4,3.6847]
[1754271737211,1.3894,3544.5,3544.4,3.6847]
[1754271737802,2.3908,3544.5,3544.4,3.6847]
[1754271738813,3.6752,3544.5,3544.4,3.6847]
[1754271742316,3.6752,3544.5,3544.4,2.884]
[1754271744418,3.6752,3544.5,3544.1,3.2078]
[1754271744716,4.12387,3544.1,3544.0,0.8271]
[1754271744924,3.5596,3544.0,3543.9,1.01581569]
[1754271745113,6.71146444,3544.0,3543.9,1.01581569]
[1754271746115,3.5596,3543.3,3543.2,5.71584843]
[1754271746320,0.9362,3543.1,3543.0,6.14644843]
[1754271746524,1.5183,3543.1,3543.0,6.14644843]
[1754271746918,2.0407,3543.1,3543.0,6.71087843]
[1754271747119,2.7976,3543.1,3543.0,6.14644843]
[1754271747321,2.7976,3543.1,3542.1,3.54399693]
[1754271747322,0.56455,3542.2,3542.1,3.54399693]
[1754271747528,6.92421444,3542.2,3542.1,1.70195242]
[1754271747726,6.92421444,3542.2,3542.1,2.50285242]
[1754271747926,6.92421444,3542.2,3542.1,0.8009]
[1754271748126,3.2078,3542.2,3542.1,0.8009]
[1754271748921,3.2078,3542.2,3542.1,3.6384]
[1754271749427,3.2078,3542.6,3542.2,1.628]
[1754271749636,3.2078,3542.6,3542.5,3.6384]
[1754271750332,19.572,3542.9,3542.8,3.6384]
[1754271750532,3.2078,3542.9,3542.8,3.6384]
[1754271750735,3.2078,3542.9,3542.8,2.6631]
[1754271750927,3.2078,3542.9,3542.8,0.8009]
[1754271752029,3.2078,3542.9,3542.8,3.6384]
[1754271752931,3.2078,3542.9,3542.8,0.8009]
[1754271753137,0.56446,3542.8,3542.4,1.4966]
[1754271753436,25.26075603,3543.5,3542.1,0.56457]
[1754271753437,0.56452,3542.4,3542.1,2.3237]
[1754271753632,3.2078,3542.5,3542.4,3.0622]
[1754271753830,3.2078,3542.9,3542.8,3.0622]
[1754271754136,3.2078,3542.9,3542.8,2.1418]
[1754271754332,3.2078,3542.9,3542.8,3.0622]
[1754271754531,3.2078,3542.9,3542.8,3.6384]
[1754271755339,2.5787,3542.9,3542.8,3.6384]
[1754271757637,2.74100954,3542.9,3542.8,3.6384]
[1754271757831,2.5787,3542.9,3542.8,3.6384]
[1754271758727,2.5787,3542.9,3542.8,4.20286]
[1754271759337,3.5801,3542.9,3542.8,0.8009]
[1754271759834,3.5801,3542.9,3542.8,1.628]
[1754271760131,3.5801,3542.9,3542.8,2.1493]
[1754271760532,3.5801,3542.9,3542.8,3.6384]
[1754271760830,3.1608,3542.9,3542.8,3.6384]
[1754271761039,2.5787,3542.9,3542.8,3.6384]
[1754271762233,3.5801,3542.9,3542.8,3.6384]
[1754271762429,3.5801,3542.9,3542.2,1.628]
[1754271762430,0.4193,3542.3,3542.2,1.628]
[1754271762630,1.0014,3542.3,3542.2,3.0622]
[1754271762829,1.0014,3542.3,3542.2,0.8009]
[1754271763037,1.0014,3542.3,3542.2,1.628]
[1754271763734,1.7419,3542.3,3542.2,1.628]
[1754271764036,0.4193,3542.3,3542.2,3.9214]
[1754271764629,1.0769,3542.3,3542.2,3.9214]
[1754271765629,1.359,3542.3,3542.2,3.9214]
[1754271766528,1.8174,3542.3,3542.2,3.9214]
[1754271766728,1.8174,3542.3,3542.2,3.2474]
[1754271767034,2.40239,3542.0,3541.9,2.3294]
[1754271767235,5.78649,3542.0,3541.9,0.8848]
[1754271768034,2.40245,3541.6,3541.5,4.0415]
[1754271768227,1.6615,3541.3,3541.2,4.0415]
[1754271768433,0.56469,3541.4,3541.2,4.0415]
[1754271768634,3.77246,3541.6,3541.5,4.0415]
[1754271768833,5.61026,3541.6,3541.5,4.06498744]
[1754271769236,3.2078,3541.6,3541.5,4.63125788]
[1754271769632,3.2078,3542.0,3541.6,1.41163]
[1754271769838,3.2078,3542.0,3541.9,4.6061]
[1754271770037,3.8654,3542.9,3542.7,1.5588]
[1754271770236,3.2078,3542.9,3542.8,2.4]
[1754271770539,3.2078,3542.9,3542.8,2.98975788]
[1754271771140,3.2078,3542.9,3542.8,0.58975788]
[1754271771141,5.45604,3542.9,3542.8,0.58975788]
[1754271771436,1.0262,3542.2,3542.1,1.726]
[1754271771629,0.6576,3542.5,3542.2,0.56456]
[1754271771935,3.2078,3542.8,3542.6,2.4]
[1754271772133,3.2078,3542.8,3542.7,0.56448]
[1754271772341,0.6576,3543.5,3543.2,0.5644]
[1754271772532,0.6576,3543.5,3543.3,2.4]
[1754271772835,0.6576,3543.5,3543.4,2.4]
[1754271773036,1.46534485,3543.5,3543.4,2.4]
[1754271773237,0.6576,3543.5,3543.4,2.4]
[1754271773438,1.46587503,3543.5,3543.4,2.4]
[1754271773640,0.6576,3543.5,3543.4,2.4]
[1754271774035,3.77214,3543.6,3543.1,0.5644]
[1754271774241,3.2078,3543.6,3543.5,2.4]
[1754271775038,3.2078,3543.6,3543.5,2.42347731]
[1754271775228,0.6576,3543.9,3543.5,2.42347731]
[1754271775434,0.80550927,3543.8,3543.7,2.96432]
[1754271775742,3.2078,3544.0,3543.9,1.5588]
[1754271776041,4.67143684,3544.0,3543.9,2.43857057]
[1754271776633,4.84773684,3544.0,3543.9,2.43857057]
[1754271776834,5.69763684,3544.0,3543.9,1.76457057]
[1754271777334,4.84773684,3544.0,3543.9,1.76457057]
[1754271777536,4.84773684,3544.0,3543.9,2.43857057]
[1754271777738,5.69763684,3544.0,3543.9,2.43857057]
[1754271778034,5.69763684,3544.0,3543.9,1.76457057]
[1754271778441,4.84773684,3544.0,3543.9,2.43857057]
[1754271778632,5.88493684,3544.0,3543.9,4.08007057]
[1754271778835,4.61133684,3544.0,3543.9,4.08007057]
[1754271779040,1.40353684,3544.0,3543.9,4.08007057]
[1754271779236,0.6576,3544.3,3544.1,1.6415]
[1754271779438,1.83966345,3544.2,3544.1,1.6415]
[1754271779640,1.6948,3544.2,3544.1,1.6415]
[1754271780037,1.9769,3544.2,3544.1,4.08007057]
[1754271780235,3.94831,3544.4,3544.3,4.60572]
[1754271780236,3.2078,3544.4,3544.3,4.60572]
[1754271780640,1.2551,3544.8,3544.7,1.6415]
[1754271780839,1.81924,3544.8,3544.7,4.0415]
[1754271781152,1.2551,3544.8,3544.7,4.08007057]
[1754271781443,19.698,3545.0,3544.7,4.08007057]
[1754271781640,21.6749,3545.0,3544.9,3.3675]
[1754271781840,23.50306153,3545.0,3544.9,0.8412]
[1754271782048,22.7011,3545.0,3544.9,0.8412]
[1754271782244,22.7011,3545.0,3544.9,0.03857057]
[1754271783233,22.79209,3545.0,3544.3,1.726]
[1754271783434,1.3193,3544.4,3544.3,1.726]
[1754271783634,3.0031,3544.4,3544.3,1.726]
[1754271783947,3.0031,3544.4,3544.3,3.3675]
[1754271784146,2.1532,3544.4,3544.3,4.0415]
[1754271784646,1.9769,3544.4,3544.3,4.0415]
[1754271785040,1.6948,3544.4,3544.3,4.0415]
[1754271785244,3.77198,3544.6,3544.5,1.6415]
[1754271785433,3.77198,3544.6,3544.5,3.3675]
[1754271785639,3.77198,3544.6,3544.5,4.0415]
[1754271785834,3.2078,3544.6,3544.5,4.0415]
[1754271789035,0.56416,3544.7,3544.5,4.0415]
[1754271789240,0.56416,3544.7,3544.6,4.0415]
[1754271789441,0.5975,3544.7,3544.6,4.0415]
[1754271790544,4.46354685,3545.1,3544.4,0.5642]
[1754271790545,5.027,3545.1,3545.0,4.0415]
[1754271790754,3.7719,3545.1,3545.0,4.0415]
[1754271791542,2.71731,3545.0,3544.9,1.6415]
[1754271791742,3.56721,3545.0,3544.9,3.3675]
[1754271791938,3.0031,3545.0,3544.9,3.3675]
[1754271792249,0.56409,3545.2,3544.9,1.6415]
[1754271792448,2.25889,3545.2,3545.1,4.0415]
[1754271792646,3.56719,3545.2,3545.1,3.3675]
[1754271792845,1.6948,3544.7,3544.6,3.2003]
[1754271793245,1.0372,3544.7,3544.6,4.0415]
[1754271793550,3.56722,3545.0,3544.9,4.0415]
[1754271793750,3.2078,3545.1,3544.9,4.0415]
[1754271794047,4.9386,3545.1,3545.0,4.0415]
[1754271794244,5.219,3545.1,3545.0,4.0415]
[1754271794444,6.2775,3545.1,3545.0,3.3759]
[1754271794647,1.3228,3544.8,3544.7,2.2877]
[1754271794852,2.57534,3544.8,3544.7,4.0415]
[1754271795044,3.63384,3544.8,3544.7,2.9258]
[1754271795451,3.63384,3544.8,3544.7,3.3759]
[1754271795647,3.63384,3544.8,3544.7,4.0415]
[1754271795847,2.75054,3544.8,3544.7,4.0415]
[1754271796152,3.63384,3544.8,3544.7,3.3759]
[1754271796452,3.63384,3544.8,3544.7,2.9258]
[1754271796649,3.63384,3544.8,3544.7,2.331]
[1754271796848,1.88699,3544.5,3544.4,0.8997]
[1754271797050,2.75059,3544.5,3544.4,2.6102]
[1754271797246,3.63389,3544.5,3544.4,2.7987]
[1754271797446,3.63389,3544.5,3544.4,3.3759]
[1754271798350,2.29499,3544.5,3544.4,4.0415]
[1754271798554,0.56418,3544.6,3544.4,1.6221]
[1754271798853,0.56418,3544.6,3544.5,4.0415]
[1754271799054,1.14738,3544.6,3544.5,4.0415]
[1754271799243,0.56418,3544.6,3544.5,4.0415]
[1754271799447,3.77196,3544.7,3544.6,4.0415]
[1754271799648,2.29496,3544.7,3544.6,4.0415]
[1754271799949,6.83056,3544.7,3544.6,2.9258]
[1754271801145,6.83056,3544.7,3544.3,0.6656]
[1754271801146,1.14739,3544.5,3544.4,1.172]
[1754271801446,3.2078,3544.7,3544.6,2.4194]
[1754271801651,3.2078,3544.7,3544.6,1.6221]
[1754271801852,3.2078,3544.7,3544.6,4.0415]
[1754271805750,4.35509,3545.2,3545.1,4.0415]
[1754271805949,5.15415557,3545.2,3545.1,4.0415]
[1754271806350,6.30175557,3545.2,3545.1,4.0415]
[1754271807058,6.57525557,3545.2,3545.1,4.0415]
[1754271807260,2.56844,3544.9,3544.8,4.0415]
[1754271807561,2.0043,3544.9,3544.8,4.0415]
[1754271807751,1.7308,3544.9,3544.8,4.0415]
[1754271807955,0.5832,3545.0,3544.9,4.60563]
[1754271808457,1.3831527,3545.0,3544.9,4.60563]
[1754271809052,0.7999527,3545.0,3544.9,4.60563]
[1754271809354,3.2078,3545.2,3544.5,1.41045]
[1754271809355,0.56406,3545.4,3545.2,1.6221]
[1754271809552,1.14726,3545.4,3545.3,4.0415]
[1754271809753,1.94774757,3545.4,3545.3,4.0415]
[1754271809949,0.80048757,3545.4,3545.3,4.0415]
[1754271810159,4.2132293,3545.6,3545.5,4.0415]
[1754271810462,3.2078,3545.6,3545.5,4.0415]
[1754271810659,3.2078,3545.6,3545.4,0.56405]
[1754271810660,1.0054293,3546.0,3545.9,1.6221]
[1754271810862,2.6999083,3546.0,3545.9,4.0415]
[1754271811159,3.3883083,3546.0,3545.9,4.0415]
[1754271811354,3.2139,3546.0,3545.9,4.0415]
[1754271811660,0.8811,3546.0,3545.3,0.6656]
[1754271811958,3.77776,3546.6,3546.5,4.0415]
[1754271812261,3.77776,3546.6,3546.5,2.63116621]
[1754271812450,4.0972,3546.6,3546.5,3.80316621]
[1754271813851,4.0972,3546.6,3546.5,0.5948]
[1754271814056,3.2139,3546.3,3546.2,3.1874]
[1754271814251,4.0972,3546.3,3546.2,3.1874]
[1754271814456,4.0972,3546.3,3546.2,4.0415]
[1754271816259,1.6444,3546.3,3546.2,4.0415]
[1754271816461,3.2078,3546.7,3546.6,0.56386]
[1754271816765,3.2078,3546.7,3546.6,4.60536]
[1754271817164,1.0,3547.0,3546.9,4.60531]
[1754271818766,5.0972,3547.0,3546.9,4.0415]
[1754271819866,4.2139,3547.0,3546.9,4.0415]
[1754271821062,5.0972,3547.0,3546.9,4.0415]
[1754271821764,4.66103,3546.8,3546.7,4.0415]
[1754271821957,0.56381,3546.9,3546.7,1.6221]
[1754271822162,2.6444,3547.0,3546.9,4.0415]
[1754271822560,5.0972,3547.0,3546.9,4.0415]
[1754271822957,4.2139,3547.0,3546.9,4.0415]
[1754271823163,1.0,3547.0,3546.9,4.0415]
[1754271823664,1.0,3547.0,3546.9,3.3759]
[1754271823665,4.4088,3547.0,3546.9,3.3759]
[1754271823860,4.4088,3547.0,3546.8,0.5844]
[1754271823861,4.65221,3546.9,3546.8,0.5844]
[1754271824064,1.6563,3546.6,3546.5,3.3522]
[1754271824263,4.0884,3546.6,3546.5,4.0439]
[1754271824769,3.2097,3546.6,3546.5,4.0439]
[1754271825564,1.6563,3546.6,3546.5,4.0439]
[1754271826571,4.2078,3547.0,3546.8,4.60772]
[1754271826865,4.2078,3547.0,3546.9,4.0439]
[1754271827471,8.2962,3547.0,3546.9,4.0439]
[1754271827865,3.09885,3546.7,3546.6,1.6283]
[1754271828066,2.535,3546.7,3546.6,4.0439]
[1754271828465,4.0884,3546.7,3546.6,4.0439]
[1754271830068,3.2097,3546.7,3546.6,2.32]
[1754271830272,4.0884,3546.4,3546.3,4.0439]
[1754271831172,4.6523,3546.4,3546.2,3.77171]
[1754271831371,4.6523,3546.4,3546.3,0.5844]
[1754271831568,4.6523,3546.4,3546.3,1.6283]
[1754271831875,4.0884,3546.4,3546.3,4.0439]
[1754271832467,4.0884,3546.4,3546.3,1.193]
[1754271833176,4.0884,3546.4,3546.3,4.6078]
[1754271833670,1.0638,3546.6,3546.5,4.60777]
[1754271833869,0.56382,3546.8,3546.7,4.0439]
[1754271834070,3.77352,3546.8,3546.7,4.0439]
[1754271834271,4.0884,3546.8,3546.7,4.0439]
[1754271834872,4.0884,3546.8,3546.2,3.2078]
[1754271834873,5.0884,3547.0,3546.9,3.3522]
[1754271835077,5.0884,3547.0,3546.9,4.0439]
[1754271836582,5.0884,3547.0,3546.9,1.193]
[1754271836773,5.0884,3547.0,3546.9,0.5844]
[1754271837274,5.0884,3547.0,3546.9,4.0439]
[1754271838072,5.0884,3547.0,3546.9,2.4733]
[1754271838472,5.0884,3547.0,3546.9,3.3522]
[1754271838780,1.6563,3546.3,3546.2,6.3728]
[1754271838980,4.0884,3546.3,3546.2,7.81562]
[1754271839573,0.4585,3546.3,3546.2,7.81562]
[1754271839774,4.0884,3546.6,3546.5,4.60777]
[1754271839975,4.0884,3546.9,3546.8,4.0439]
[1754271840175,4.65222,3546.9,3546.8,4.0439]
[1754271840375,4.65222,3546.9,3546.8,1.8647]
[1754271841082,4.65225,3546.6,3546.5,0.5844]
[1754271841580,3.9925,3546.3,3546.2,3.165]
[1754271841781,4.0884,3546.3,3546.2,4.0439]
[1754271841985,5.7577,3546.6,3546.5,4.0439]
[1754271842484,6.4175,3546.6,3546.5,4.0439]
[1754271842676,7.2962,3546.6,3546.5,4.0439]
[1754271842976,5.6399,3546.6,3546.2,2.4156]
[1754271843185,4.0884,3546.3,3546.2,4.0439]
[1754271848072,1.40955,3546.9,3546.0,3.0242]
[1754271848073,2.33623,3546.1,3546.0,3.0242]
[1754271848277,4.65233,3546.1,3546.0,4.0439]
[1754271848984,4.0884,3546.1,3546.0,4.0439]
[1754271849685,1.6563,3546.0,3545.9,0.5844]
[1754271850376,4.0884,3546.0,3545.9,0.5844]
[1754271851484,4.65235,3546.0,3545.9,0.5844]
[1754271851688,4.05989,3545.8,3545.7,0.5844]
[1754271851879,4.65239,3545.8,3545.7,0.5844]
[1754271852384,2.22031,3545.6,3545.5,1.8847]
[1754271852586,4.0884,3545.6,3545.5,4.0439]
[1754271855182,4.65241,3545.6,3545.5,4.0439]
[1754271855483,4.65241,3545.6,3545.5,1.193]
[1754271855885,4.0884,3545.6,3545.5,1.193]
[1754271856080,4.0884,3545.6,3545.5,2.0734]
[1754271856280,4.0884,3545.6,3545.5,4.046]
[1754271856482,3.8948,3545.5,3545.4,4.78673]
[1754271856685,3.8948,3545.5,3545.4,7.78853]
[1754271857580,3.8948,3545.5,3545.4,7.2245]
[1754271857781,3.0339,3545.5,3545.4,5.6709]
[1754271857979,3.8948,3545.5,3545.4,5.6709]
[1754271858391,3.8948,3545.5,3545.4,4.7905]
[1754271858592,3.8948,3545.5,3545.4,2.4631]
[1754271859085,3.8948,3545.5,3545.4,3.3654]
[1754271859487,3.8948,3545.5,3545.4,4.0167]
[1754271859786,0.56405,3545.4,3545.2,3.71372194]
[1754271859998,3.8948,3545.3,3545.2,1.5827]
[1754271860284,3.8948,3545.3,3545.2,4.0167]
[1754271861386,3.8948,3545.3,3545.2,1.1637]
[1754271862186,3.8948,3545.3,3545.0,0.8804]
[1754271862393,1.5789,3544.6,3544.5,10.03604194]
[1754271862585,2.4111,3544.6,3544.5,10.93834194]
[1754271862788,0.5688,3544.6,3544.5,10.93834194]
[1754271863085,3.8948,3544.9,3544.8,4.0167]
[1754271863885,3.2078,3545.3,3544.8,4.73235194]
[1754271864087,0.56404,3545.5,3545.4,1.5827]
[1754271864289,2.14294,3545.5,3545.4,4.0167]
[1754271864495,4.45884,3545.5,3545.4,4.0167]
[1754271864993,7.66664,3545.5,3545.4,4.0167]
[1754271865289,7.66664,3545.5,3545.4,0.5959]
[1754271865593,7.66664,3545.5,3545.2,0.9023]
[1754271865594,1.5789,3545.3,3545.2,4.0167]
[1754271865990,3.8948,3545.3,3545.2,4.0167]
[1754271867896,3.8948,3545.3,3545.2,2.5466]
[1754271868398,3.8948,3545.3,3545.2,3.1144]
[1754271868595,0.56406,3545.4,3545.2,4.0167]
[1754271868800,4.45886,3545.4,3545.3,4.0167]
[1754271870296,2.14299,3545.1,3545.0,4.0167]
[1754271870500,4.45895,3544.8,3544.7,4.0167]
[1754271870897,4.45895,3544.8,3544.7,1.4701]
[1754271871098,1.0248,3544.3,3544.2,1.55103]
[1754271871405,3.0339,3544.3,3544.2,2.14693]
[1754271871594,3.8948,3544.3,3544.2,1.5827]
[1754271871799,3.8948,3544.3,3544.2,4.0167]
[1754271871998,1.5789,3544.1,3544.0,5.6709]
[1754271872198,3.8948,3544.1,3544.0,7.2245]
[1754271872404,3.2078,3544.6,3544.2,1.5827]
[1754271872405,2.4111,3544.3,3544.2,1.5827]
[1754271872699,3.8948,3544.3,3544.2,4.0167]
[1754271874700,3.8948,3544.3,3544.2,2.4631]
[1754271874894,1.5789,3544.0,3543.9,3.70058]
[1754271875098,3.8948,3544.0,3543.9,3.70058]
[1754271875596,3.8948,3544.0,3543.9,4.58098]
[1754271876008,3.0339,3544.0,3543.9,4.58098]
[1754271876207,1.5789,3544.0,3543.9,7.73063194]
[1754271877802,3.8948,3544.0,3543.9,4.58098]
[1754271878210,3.8948,3544.0,3543.9,3.92968]
[1754271878411,3.8948,3544.0,3543.9,1.1637]
[1754271878812,3.8948,3544.0,3543.9,4.0167]
[1754271880715,1.5789,3544.0,3543.9,4.0167]
[1754271880916,2.4111,3544.0,3543.9,7.16635194]
[1754271881103,3.2078,3544.5,3544.4,4.0167]
[1754271881310,3.2078,3544.5,3544.4,7.16635194]
[1754271882521,0.56419,3544.6,3544.4,7.16635194]
[1754271882720,1.5789,3544.6,3544.5,4.0167]
[1754271883522,2.2017,3544.6,3544.5,4.0167]
[1754271883722,3.0339,3544.6,3544.5,4.0167]
[1754271884824,3.8951,3544.6,3544.5,4.0167]
[1754271885023,0.56419,3544.5,3544.4,0.555]
[1754271885226,1.41031,3545.0,3544.3,3.97355194]
[1754271885227,3.77191,3545.0,3544.9,1.5593]
[1754271885419,3.2078,3545.0,3544.9,3.9438]
[1754271885620,3.2078,3545.0,3544.7,3.14965194]
[1754271885621,0.9903,3545.4,3545.3,3.9438]
[1754271885923,2.41,3545.4,3545.3,3.9438]
[1754271886314,3.0182,3545.4,3545.3,3.9438]
[1754271887026,3.8794,3545.4,3545.3,3.9438]
[1754271888621,3.8794,3545.4,3545.3,1.8613]
[1754271888925,3.8794,3545.4,3545.3,3.9438]
[1754271889925,3.8794,3545.4,3545.3,3.1199]
[1754271890229,3.8794,3545.1,3545.0,3.2078]
[1754271890823,3.8794,3545.1,3544.2,3.97355194]
[1754271890824,1.58,3544.7,3544.6,2.12347]
[1754271891128,3.8794,3544.7,3544.6,0.963]
[1754271891425,3.8794,3544.7,3544.6,1.8613]
[1754271892729,3.8794,3544.7,3544.6,3.9438]
[1754271893226,3.8794,3544.7,3544.6,3.1199]
[1754271894224,3.8794,3544.7,3544.6,3.9438]
[1754271895029,3.8794,3544.7,3544.6,3.1199]
[1754271895529,3.8794,3544.7,3544.6,3.9438]
[1754271895930,3.8794,3544.7,3544.6,3.1199]
[1754271896230,3.8794,3544.4,3544.3,3.9438]
[1754271896930,3.8794,3544.4,3544.3,3.1199]
[1754271897126,3.8794,3544.4,3544.3,3.9438]
[1754271900836,3.2078,3544.8,3544.0,3.60976]
[1754271900837,1.58,3544.1,3544.0,3.60976]
[1754271901035,3.8794,3544.1,3544.0,3.60976]
[1754271901238,3.0182,3544.1,3544.0,3.60976]
[1754271901534,3.0182,3544.1,3544.0,4.50806]
[1754271902031,1.9785,3544.1,3544.0,2.5236]
[1754271902237,3.8794,3543.8,3543.7,6.2224]
[1754271902531,3.8794,3543.8,3543.7,5.9681]
[1754271902731,3.8794,3543.8,3543.7,0.899]
[1754271904043,3.2078,3544.0,3543.9,3.9438]
[1754271905131,1.58,3544.4,3544.3,3.9438]
[1754271905326,0.56418,3544.6,3544.4,2.1235]
[1754271905531,2.97418,3544.6,3544.5,3.9438]
[1754271905725,4.44358,3544.6,3544.5,3.9438]
[1754271906523,4.44358,3544.6,3544.5,3.1199]
[1754271906725,4.44358,3544.6,3544.5,2.5236]
[1754271907236,3.0182,3544.6,3544.5,3.9438]
[1754271907734,3.2078,3544.8,3544.7,3.0455]
[1754271908039,5.6178,3545.2,3545.1,3.9438]
[1754271908237,6.39566913,3545.2,3545.1,3.9438]
[1754271908541,5.6178,3545.2,3545.1,3.9438]
[1754271909237,6.226,3545.2,3545.1,3.9438]
[1754271909837,7.0872,3545.2,3545.1,3.9438]
[1754271910034,6.226,3545.2,3545.1,3.9438]
[1754271910335,7.0872,3545.2,3545.1,3.9438]
[1754271911835,3.2078,3545.2,3545.1,3.9438]
[1754271912536,5.1863,3545.2,3545.1,3.9438]
[1754271912737,5.6178,3545.2,3545.1,3.9438]
[1754271913540,2.1882,3544.9,3544.8,2.4576]
[1754271913840,2.1882,3544.9,3544.8,3.2815]
[1754271914041,1.58,3544.9,3544.8,3.8871]
[1754271914235,0.5897,3544.9,3544.8,3.8871]
[1754271914637,2.3611,3545.1,3545.0,3.8332]
[1754271915140,3.8307,3545.1,3545.0,3.8332]
[1754271915339,2.3611,3545.1,3545.0,3.8332]
[1754271915935,2.987,3545.1,3545.0,3.8332]
[1754271916131,3.8307,3545.1,3545.0,3.8332]
[1754271916541,4.39481,3545.1,3544.8,0.56413]
[1754271916737,3.8307,3545.0,3544.9,0.9752]
[1754271917040,3.2048,3545.0,3544.9,1.7909]
[1754271917235,3.2048,3544.7,3544.6,3.55316]
[1754271917432,3.55112,3545.0,3544.9,3.8332]
[1754271917633,4.39482,3545.0,3544.9,3.8332]
[1754271917837,4.39482,3545.0,3544.9,2.989]
[1754271919243,3.8307,3544.7,3544.6,2.13186]
[1754271919444,3.8307,3544.7,3544.6,4.39736]
[1754271920147,2.987,3544.7,3544.6,4.39736]
[1754271920450,1.5491,3544.7,3544.6,4.39736]